[Event "Hungarian Youth-ch I 2024"]
[Site "Szolnok"]
[Date "2024.04.02"]
[Round "2.9"]
[White "Szegedy, Matyas"]
[Black "Gyorfi, Adam"]
[Result "1-0"]
[ECO "B30"]
[WhiteElo "2177"]
[BlackElo "2042"]
[Annotator "RC"]
[PlyCount "87"]
[EventDate "2024.03.31"]
[EventType "swiss"]
[EventCountry "HUN"]
[SourceTitle "playchess.com"]
[Source "ChessBase"]
[SourceQuality "1"]
[TimeControl "5400+30"]

1. e4 {[%emt 0:00:09]} c5 {[%emt 0:00:06]} 2. Nf3 {[%emt 0:00:10]} Nc6 {[%emt 0:00:08]} 3. Bb5 {[%emt 0:00:17]} e5 {[%emt 0:01:26]} 4. O-O {[%emt 0:03:56]} Bd6 {[%emt 0:00:22]} 5. c3 {[%emt 0:05:45]} a6 {[%emt 0:01:36]} 6. Bxc6 {[%emt 0:11:58]} dxc6 {[%emt 0:01:38]} 7. d4 {[%emt 0:00:12]} cxd4 {[%emt 0:05:29]} 8. cxd4 {[%emt 0:00:07]} Bg4 {[%emt 0:06:29]} 9. dxe5 {[%emt 0:05:42]} Bc7 {[%emt 0:01:54]} 10. Nbd2 {[%emt 0:02:38]} Qd3 {[%emt 0:14:10]} 11. a4 {[%emt 0:12:18]} Rd8 {[%emt 0:14:16]} 12. Ra3 {[%emt 0:07:16]} Qd7 {[%emt 0:02:40]} 13. Qc2 {[%emt 0:00:47]} Ne7 {[%emt 0:03:22]} 14. Nc4 {[%emt 0:20:25]} b5 {[%emt 0:07:21]} 15. axb5 {[%emt 0:00:31]} axb5 {[%emt 0:00:30]} 16. Nd6+ {[%emt 0:03:31]} Bxd6 {[%emt 0:01:54]} 17. exd6 {[%emt 0:04:11]} Qxd6 {[%emt 0:00:39]} 18. Bg5 {[%emt 0:00:12]} Bxf3 {[%emt 0:09:41]} 19. Rxf3 {[%emt 0:00:21]} f6 {[%emt 0:00:57]} 20. Bf4 {[%emt 0:14:22]} Qe6 {[%emt 0:01:25]} 21. e5 {[%emt 0:00:17]} O-O {[%emt 0:04:12]} 22. exf6 {[%emt 0:04:15]} Rxf6 {[%emt 0:01:05]} 23. Re3 {[%emt 0:00:14]} Qf5 {[%emt 0:01:20]} 24. Qb3+ {[%emt 0:00:30]} Qd5 {[%emt 0:00:30]} 25. Rd1 {[%emt 0:00:53]} Qxb3 {[%emt 0:01:40]} 26. Rxd8+ {[%emt 0:00:06]} Kf7 {[%emt 0:00:01]} 27. Rxb3 {[%emt 0:00:10]} Rxf4 {[%emt 0:00:07]} 28. g3 {[%emt 0:00:29]} Rc4 {[%emt 0:01:03]} 29. Rf3+ {[%emt 0:00:13]} Kg6 {[%emt 0:02:03]} 30. Rd6+ {[%emt 0:00:57]} Kh5 {[%emt 0:00:54]} 31. Re6 {[%emt 0:00:50]} Ng6 {[%emt 0:01:20]} 32. Rc3 {[%emt 0:01:18]} Rb4 {[%emt 0:01:00]} 33. b3 {[%emt 0:00:29]} Rd4 {[%emt 0:01:47]} 34. Rexc6 {[%emt 0:00:58]} b4 {[%emt 0:00:01]} 35. R3c4 {[%emt 0:00:20]} Rd3 {[%emt 0:01:59]} 36. Rxb4 {[%emt 0:00:08]} Rd2 {[%emt 0:00:23]} 37. Re4 {[%emt 0:00:33]} Rd1+ {[%emt 0:01:10]} 38. Kg2 {[%emt 0:00:06]} Rd3 {[%emt 0:00:10]} 39. b4 {[%emt 0:00:33]} Rb3 {[%emt 0:00:01]} 40. h4 {[%emt 0:00:27]} Kh6 {[%emt 0:00:27]} 41. Rc5 {[%emt 0:00:58]} Rd3 {[%emt 0:01:08]} 42. Re3 {[%emt 0:00:21]} Rd6 {[%emt 0:00:57]} 43. b5 {[%emt 0:00:25]} Rb6 {[%emt 0:00:09]} 44. h5 {[%emt 0:00:11]} 1-0

[Event "Hungarian Youth-ch I 2024"]
[Site "Szolnok"]
[Date "2024.04.02"]
[Round "2.10"]
[White "Megyaszai, Balazs"]
[Black "Herczeg, Marcell"]
[Result "1/2-1/2"]
[ECO "B48"]
[WhiteElo "2029"]
[BlackElo "2107"]
[Annotator "RC"]
[PlyCount "59"]
[EventDate "2024.03.31"]
[EventType "swiss"]
[EventCountry "HUN"]
[SourceTitle "playchess.com"]
[Source "ChessBase"]
[SourceQuality "1"]
[TimeControl "5400+30"]

1. e4 {[%emt 0:00:05]} c5 {[%emt 0:00:42]} 2. Nf3 {[%emt 0:00:35]} e6 {[%emt 0:00:22]} 3. d4 {[%emt 0:00:23]} cxd4 {[%emt 0:00:08]} 4. Nxd4 {[%emt 0:00:22]} Nc6 {[%emt 0:00:17]} 5. Nc3 {[%emt 0:00:09]} Qc7 {[%emt 0:00:05]} 6. Be3 {[%emt 0:00:05]} a6 {[%emt 0:00:04]} 7. g4 {[%emt 0:00:11]} b5 {[%emt 0:12:05]} 8. Nxc6 {[%emt 0:00:06]} Qxc6 {[%emt 0:00:56]} 9. Qd2 {[%emt 0:00:20]} Bb7 {[%emt 0:00:39]} 10. Bg2 {[%emt 0:12:26]} b4 {[%emt 0:09:52]} 11. Ne2 {[%emt 0:02:28]} Nf6 {[%emt 0:00:33]} 12. f3 {[%emt 0:05:52]} d5 {[%emt 0:10:41]} 13. e5 {[%emt 0:20:00]} Nd7 {[%emt 0:00:36]} 14. f4 {[%emt 0:01:28]} Qc7 {[%emt 0:05:44]} 15. g5 {[%emt 0:05:04]} a5 {[%emt 0:05:28]} 16. h4 {[%emt 0:07:54]} Ba6 {[%emt 0:07:24]} 17. Nd4 {[%emt 0:05:11]} Bc5 {[%emt 0:06:51]} 18. h5 {[%emt 0:07:22]} Rc8 {[%emt 0:05:42]} 19. O-O-O {[%emt 0:09:48]} Ke7 {[%emt 0:10:38]} 20. g6 {[%emt 0:05:16]} Bxd4 {[%emt 0:04:38]} 21. Bxd4 {[%emt 0:00:14]} hxg6 {[%emt 0:04:35]} 22. hxg6 {[%emt 0:01:27]} fxg6 {[%emt 0:03:28]} 23. Kb1 {[%emt 0:04:22]} Kf7 {[%emt 0:01:17]} 24. Rde1 {[%emt 0:02:37]} Rxh1 {[%emt 0:00:32]} 25. Bxh1 {[%emt 0:00:35]} Nf8 {[%emt 0:02:23]} 26. Bf3 {[%emt 0:01:39]} Bb5 {[%emt 0:01:59]} 27. Rg1 {[%emt 0:01:17]} Ba4 {[%emt 0:00:39]} 28. Bd1 {[%emt 0:01:42]} Kg8 {[%emt 0:00:18]} 29. Qh2 {[%emt 0:01:39]} Qc4 {[%emt 0:01:36]} 30. Qf2 {[%emt 0:01:13]} 1/2-1/2

[Event "Hungarian Youth-ch I 2024"]
[Site "Szolnok"]
[Date "2024.04.02"]
[Round "2.11"]
[White "Lehocz, Jozsef Jr."]
[Black "Baki, Bence"]
[Result "1-0"]
[ECO "C50"]
[WhiteElo "2143"]
[BlackElo "1876"]
[Annotator "RC"]
[PlyCount "99"]
[EventDate "2024.03.31"]
[EventType "swiss"]
[EventCountry "HUN"]
[SourceTitle "playchess.com"]
[Source "ChessBase"]
[SourceQuality "1"]
[TimeControl "5400+30"]

1. e4 {[%emt 0:00:18]} e5 {[%emt 0:00:07]} 2. Nf3 {[%emt 0:00:14]} Nc6 {[%emt 0:00:09]} 3. Bc4 {[%emt 0:01:10]} Bc5 {[%emt 0:00:43]} 4. d3 {[%emt 0:08:00]} Nf6 {[%emt 0:00:43]} 5. Nc3 {[%emt 0:00:24]} h6 {[%emt 0:01:03]} 6. Be3 {[%emt 0:03:30]} Bb4 {[%emt 0:00:31]} 7. O-O {[%emt 0:04:29]} Bxc3 {[%emt 0:02:00]} 8. bxc3 {[%emt 0:00:17]} d6 {[%emt 0:00:12]} 9. h3 {[%emt 0:15:44]} O-O {[%emt 0:00:17]} 10. Re1 {[%emt 0:03:25]} Be6 {[%emt 0:01:04]} 11. Bb3 {[%emt 0:01:14]} Re8 {[%emt 0:01:23]} 12. Qd2 {[%emt 0:04:55]} Bd7 {[%emt 0:07:10]} 13. a3 {[%emt 0:02:53]} Na5 {[%emt 0:02:25]} 14. Ba2 {[%emt 0:00:34]} c5 {[%emt 0:00:20]} 15. Rab1 {[%emt 0:03:12]} b6 {[%emt 0:00:51]} 16. Nh2 {[%emt 0:18:31]} Be6 {[%emt 0:04:39]} 17. c4 {[%emt 0:01:55]} a6 {[%emt 0:05:13]} 18. Rb2 {[%emt 0:02:08]} b5 {[%emt 0:08:49]} 19. cxb5 {[%emt 0:00:17]} Bxa2 {[%emt 0:00:12]} 20. Rxa2 {[%emt 0:00:05]} axb5 {[%emt 0:00:12]} 21. Rb2 {[%emt 0:03:55]} Nxe4 {[%emt 0:01:03]} 22. dxe4 {[%emt 0:00:50]} Nc4 {[%emt 0:00:08]} 23. Qc1 {[%emt 0:01:42]} Nxb2 {[%emt 0:00:16]} 24. Qxb2 {[%emt 0:00:05]} Qa5 {[%emt 0:00:11]} 25. Rd1 {[%emt 0:01:54]} Re6 {[%emt 0:06:30]} 26. Nf1 {[%emt 0:02:08]} Qa4 {[%emt 0:03:30]} 27. Ng3 {[%emt 0:00:41]} Ra5 {[%emt 0:01:15]} 28. Rd3 {[%emt 0:07:24]} c4 {[%emt 0:02:30]} 29. Rc3 {[%emt 0:01:00]} Re8 {[%emt 0:00:43]} 30. Nf5 {[%emt 0:00:49]} Ra6 {[%emt 0:01:20]} 31. Bd2 {[%emt 0:02:02]} Kh7 {[%emt 0:05:31]} 32. Rg3 {[%emt 0:00:54]} g5 {[%emt 0:00:15]} 33. Qc1 {[%emt 0:01:03]} f6 {[%emt 0:01:11]} 34. Qd1 {[%emt 0:00:56]} Rg8 {[%emt 0:02:08]} 35. Qh5 {[%emt 0:01:02]} Rg6 {[%emt 0:00:32]} 36. Ne7 {[%emt 0:00:06]} Rg7 {[%emt 0:00:38]} 37. Nf5 {[%emt 0:01:38]} Rg6 {[%emt 0:00:20]} 38. h4 {[%emt 0:02:58]} Qxc2 {[%emt 0:04:49]} 39. Ne7 {[%emt 0:01:12]} Qxe4 {[%emt 0:09:35]} 40. hxg5 {[%emt 0:00:12]} fxg5 {[%emt 0:00:47]} 41. Rxg5 {[%emt 0:01:44]} d5 {[%emt 0:02:02]} 42. Nxg6 {[%emt 0:01:00]} Rxg6 {[%emt 0:00:28]} 43. Rxg6 {[%emt 0:00:08]} Qxg6 {[%emt 0:02:00]} 44. Qxe5 {[%emt 0:00:04]} Qg7 {[%emt 0:03:12]} 45. Qxd5 {[%emt 0:01:40]} Qa1+ {[%emt 0:01:17]} 46. Kh2 {[%emt 0:00:06]} Qxa3 {[%emt 0:00:41]} 47. Qf7+ {[%emt 0:00:05]} Kh8 {[%emt 0:01:06]} 48. Qf6+ {[%emt 0:01:42]} Kg8 {[%emt 0:01:05]} 49. Bc3 {[%emt 0:00:36]} Qf8 {[%emt 0:00:28]} 50. Qg6+ {[%emt 0:00:05]} 1-0

[Event "Hungarian Youth-ch I 2024"]
[Site "Szolnok"]
[Date "2024.04.02"]
[Round "2.12"]
[White "Kovacs, Kristof"]
[Black "Horvath, Andras"]
[Result "1-0"]
[ECO "C48"]
[WhiteElo "2000"]
[BlackElo "2260"]
[Annotator "RC"]
[PlyCount "37"]
[EventDate "2024.03.31"]
[EventType "swiss"]
[EventCountry "HUN"]
[SourceTitle "playchess.com"]
[Source "ChessBase"]
[SourceQuality "1"]
[TimeControl "5400+30"]

1. e4 {[%emt 0:00:04]} e5 {[%emt 0:00:07]} 2. Nf3 {[%emt 0:00:11]} Nc6 {[%emt 0:00:08]} 3. Nc3 {[%emt 0:00:14]} Nf6 {[%emt 0:00:08]} 4. Bb5 {[%emt 0:00:15]} Nd4 {[%emt 0:01:55]} 5. Bc4 {[%emt 0:00:15]} Nxf3+ {[%emt 0:20:32]} 6. gxf3 {[%emt 0:00:13]} Bc5 {[%emt 0:09:53]} 7. d3 {[%emt 0:01:11]} c6 {[%emt 0:05:47]} 8. Rg1 {[%emt 0:09:18]} d5 {[%emt 0:13:53]} 9. Bb3 {[%emt 0:02:59]} O-O {[%emt 0:05:53]} 10. Bg5 {[%emt 0:05:47]} d4 {[%emt 0:04:30]} 11. Ne2 {[%emt 0:01:10]} Be6 {[%emt 0:09:10]} 12. f4 {[%emt 0:01:38]} exf4 {[%emt 0:02:59]} 13. Nxf4 {[%emt 0:02:19]} Bxb3 {[%emt 0:02:38]} 14. axb3 {[%emt 0:00:14]} Be7 {[%emt 0:04:05]} 15. Bh6 {[%emt 0:00:51]} Ne8 {[%emt 0:01:37]} 16. Qg4 {[%emt 0:04:16]} g6 {[%emt 0:03:08]} 17. Bxf8 {[%emt 0:00:16]} Bxf8 {[%emt 0:00:28]} 18. h4 {[%emt 0:01:05]} Nf6 {[%emt 0:01:22]} 19. Qf3 {[%emt 0:00:48]} 1-0

[Event "Hungarian Youth-ch I 2024"]
[Site "Szolnok"]
[Date "2024.04.02"]
[Round "2.13"]
[White "Sass, Oscar"]
[Black "Sinoros-Szabo, Daniel"]
[Result "0-1"]
[ECO "C47"]
[WhiteElo "1867"]
[BlackElo "1971"]
[Annotator "RC"]
[PlyCount "42"]
[EventDate "2024.03.31"]
[EventType "swiss"]
[EventCountry "HUN"]
[SourceTitle "playchess.com"]
[Source "ChessBase"]
[SourceQuality "1"]
[TimeControl "5400+30"]

1. e4 {[%emt 0:00:07]} e5 {[%emt 0:00:11]} 2. Nf3 {[%emt 0:00:05]} Nc6 {[%emt 0:00:10]} 3. Nc3 {[%emt 0:00:06]} Nf6 {[%emt 0:00:16]} 4. d4 {[%emt 0:00:07]} exd4 {[%emt 0:00:19]} 5. Nxd4 {[%emt 0:00:06]} Bb4 {[%emt 0:00:31]} 6. Nxc6 {[%emt 0:00:10]} bxc6 {[%emt 0:00:06]} 7. Bd3 {[%emt 0:00:07]} O-O {[%emt 0:00:42]} 8. O-O {[%emt 0:00:46]} d5 {[%emt 0:00:35]} 9. exd5 {[%emt 0:00:18]} cxd5 {[%emt 0:00:07]} 10. h3 {[%emt 0:00:20]} c6 {[%emt 0:02:49]} 11. Qf3 {[%emt 0:00:15]} Re8 {[%emt 0:02:40]} 12. Bf4 {[%emt 0:03:03]} Qe7 {[%emt 0:00:59]} 13. a3 {[%emt 0:17:35]} Bd6 {[%emt 0:01:40]} 14. Bxd6 {[%emt 0:06:13]} Qxd6 {[%emt 0:00:16]} 15. Rfe1 {[%emt 0:00:13]} Bd7 {[%emt 0:08:33]} 16. Ne2 {[%emt 0:09:15]} c5 {[%emt 0:05:15]} 17. c4 {[%emt 0:02:08]} Bc6 {[%emt 0:08:06]} 18. Qf4 {[%emt 0:03:33]} Re5 {[%emt 0:03:42]} 19. cxd5 {[%emt 0:09:22]} Qxd5 {[%emt 0:16:52]} 20. Qg3 {[%emt 0:10:28]} Nh5 {[%emt 0:09:41]} 21. Qh2 {[%emt 0:10:06]} Rg5 {[%emt 0:06:24]} 0-1

[Event "Hungarian Youth-ch I 2024"]
[Site "Szolnok"]
[Date "2024.04.02"]
[Round "2.14"]
[White "Karacsonyi, Bank"]
[Black "Jokai, Bence"]
[Result "0-1"]
[ECO "B76"]
[WhiteElo "1940"]
[BlackElo "1750"]
[Annotator "RC"]
[PlyCount "42"]
[EventDate "2024.03.31"]
[EventType "swiss"]
[EventCountry "HUN"]
[SourceTitle "playchess.com"]
[Source "ChessBase"]
[SourceQuality "1"]
[TimeControl "5400+30"]

1. e4 {[%emt 0:00:04]} c5 {[%emt 0:00:07]} 2. Nf3 {[%emt 0:00:05]} d6 {[%emt 0:00:05]} 3. d4 {[%emt 0:00:30]} cxd4 {[%emt 0:00:09]} 4. Nxd4 {[%emt 0:00:14]} Nf6 {[%emt 0:00:08]} 5. Nc3 {[%emt 0:00:15]} g6 {[%emt 0:00:06]} 6. Be3 {[%emt 0:00:46]} Bg7 {[%emt 0:00:11]} 7. f3 {[%emt 0:01:02]} O-O {[%emt 0:00:17]} 8. Qd2 {[%emt 0:00:11]} Nc6 {[%emt 0:00:07]} 9. g4 {[%emt 0:01:07]} Be6 {[%emt 0:00:47]} 10. Nxe6 {[%emt 0:01:13]} fxe6 {[%emt 0:00:08]} 11. h4 {[%emt 0:00:49]} d5 {[%emt 0:00:35]} 12. O-O-O {[%emt 0:19:26]} dxe4 {[%emt 0:19:55]} 13. Qh2 {[%emt 0:04:35]} Qa5 {[%emt 0:09:36]} 14. h5 {[%emt 0:05:09]} Ne5 {[%emt 0:05:53]} 15. hxg6 {[%emt 0:05:09]} hxg6 {[%emt 0:10:30]} 16. Nxe4 {[%emt 0:18:00]} Nxe4 {[%emt 0:14:21]} 17. Qh7+ {[%emt 0:00:45]} Kf7 {[%emt 0:01:09]} 18. fxe4 {[%emt 0:00:09]} Rh8 {[%emt 0:05:37]} 19. Bc4 {[%emt 0:00:36]} Rxh7 {[%emt 0:05:49]} 20. Rdf1+ {[%emt 0:00:12]} Ke8 {[%emt 0:02:17]} 21. Rxh7 {[%emt 0:00:25]} Nxc4 {[%emt 0:01:52]} 0-1

[Event "Hungarian Youth-ch I 2024"]
[Site "Szolnok"]
[Date "2024.04.02"]
[Round "2.15"]
[White "Hangay, Oliver"]
[Black "Li, Changxing"]
[Result "1/2-1/2"]
[ECO "C78"]
[WhiteElo "1962"]
[BlackElo "1755"]
[Annotator "RC"]
[PlyCount "79"]
[EventDate "2024.03.31"]
[EventType "swiss"]
[EventCountry "HUN"]
[SourceTitle "playchess.com"]
[Source "ChessBase"]
[SourceQuality "1"]
[TimeControl "5400+30"]

1. e4 {[%emt 0:00:05]} e5 {[%emt 0:00:08]} 2. Nf3 {[%emt 0:00:05]} Nc6 {[%emt 0:00:06]} 3. Bb5 {[%emt 0:00:04]} a6 {[%emt 0:00:08]} 4. Ba4 {[%emt 0:00:02]} Nf6 {[%emt 0:00:11]} 5. O-O {[%emt 0:00:03]} b5 {[%emt 0:00:07]} 6. Bb3 {[%emt 0:00:04]} Bc5 {[%emt 0:00:09]} 7. Nc3 {[%emt 0:00:05]} h6 {[%emt 0:00:38]} 8. d3 {[%emt 0:07:30]} O-O {[%emt 0:06:28]} 9. Nd5 {[%emt 0:00:44]} d6 {[%emt 0:03:19]} 10. c3 {[%emt 0:00:53]} Bb7 {[%emt 0:02:41]} 11. Be3 {[%emt 0:14:45]} Bxe3 {[%emt 0:06:31]} 12. Nxe3 {[%emt 0:02:19]} Ne7 {[%emt 0:03:09]} 13. Re1 {[%emt 0:05:50]} Qd7 {[%emt 0:07:07]} 14. Nf1 {[%emt 0:05:34]} Ng6 {[%emt 0:08:38]} 15. Ng3 {[%emt 0:01:32]} Ng4 {[%emt 0:05:53]} 16. d4 {[%emt 0:08:12]} Rfd8 {[%emt 0:04:04]} 17. h3 {[%emt 0:06:29]} Nf6 {[%emt 0:02:23]} 18. Qd2 {[%emt 0:03:06]} c5 {[%emt 0:06:37]} 19. Rad1 {[%emt 0:03:22]} Qc7 {[%emt 0:01:07]} 20. d5 {[%emt 0:02:12]} c4 {[%emt 0:00:47]} 21. Bc2 {[%emt 0:00:04]} Bc8 {[%emt 0:02:45]} 22. Nh2 {[%emt 0:06:23]} Nf4 {[%emt 0:05:51]} 23. Ne2 {[%emt 0:00:43]} N6h5 {[%emt 0:01:08]} 24. Nf1 {[%emt 0:06:28]} Nxe2+ {[%emt 0:00:52]} 25. Qxe2 {[%emt 0:00:16]} Nf4 {[%emt 0:00:05]} 26. Qf3 {[%emt 0:00:20]} Qe7 {[%emt 0:00:55]} 27. Qg3 {[%emt 0:01:57]} h5 {[%emt 0:01:07]} 28. Ne3 {[%emt 0:01:22]} h4 {[%emt 0:00:41]} 29. Qf3 {[%emt 0:00:08]} Qg5 {[%emt 0:00:29]} 30. Kh2 {[%emt 0:00:32]} Nh5 {[%emt 0:01:11]} 31. g3 {[%emt 0:10:15]} g6 {[%emt 0:02:30]} 32. Ng2 {[%emt 0:01:31]} hxg3+ {[%emt 0:00:24]} 33. fxg3 {[%emt 0:00:01]} Rb8 {[%emt 0:01:15]} 34. Ne3 {[%emt 0:00:35]} Kg7 {[%emt 0:00:44]} 35. Rf1 {[%emt 0:00:29]} Rb7 {[%emt 0:00:19]} 36. h4 {[%emt 0:01:36]} Qh6 {[%emt 0:00:49]} 37. Ng4 {[%emt 0:00:35]} Bxg4 {[%emt 0:00:16]} 38. Qxg4 {[%emt 0:00:01]} Rh8 {[%emt 0:01:19]} 39. Kg2 {[%emt 0:00:49]} b4 {[%emt 0:01:09]} 40. Qf3 {[%emt 0:04:48]} 1/2-1/2

[Event "Hungarian Youth-ch I 2024"]
[Site "Szolnok"]
[Date "2024.04.02"]
[Round "2.16"]
[White "Pergel, Bence"]
[Black "Papai, Mate"]
[Result "0-1"]
[ECO "D43"]
[WhiteElo "1752"]
[BlackElo "1887"]
[Annotator "NA RC"]
[PlyCount "120"]
[EventDate "2024.03.31"]
[EventType "swiss"]
[EventCountry "HUN"]
[SourceTitle "playchess.com"]
[Source "ChessBase"]
[SourceQuality "1"]
[TimeControl "5400+30"]

1. Nf3 {[%emt 0:00:04]} d5 {[%emt 0:00:12]} 2. d4 {[%emt 0:00:04]} Nf6 {[%emt 0:00:11]} 3. c4 {[%emt 0:00:09]} c6 {[%emt 0:00:19]} 4. Nc3 {[%emt 0:00:06]} e6 {[%emt 0:00:18]} 5. Bg5 {[%emt 0:00:19]} Nbd7 {[%emt 0:00:32]} 6. cxd5 {[%emt 0:00:07]} exd5 {[%emt 0:00:16]} 7. e3 {[%emt 0:00:08]} Be7 {[%emt 0:07:09]} 8. Bd3 {[%emt 0:00:21]} O-O {[%emt 0:00:35]} 9. Qc2 {[%emt 0:00:17]} h6 {[%emt 0:00:30]} 10. Bh4 {[%emt 0:00:16]} b5 {[%emt 0:07:58] D36: Queen's Gambit Declined: Exchange Variation: Main line (5 Bg5 c6 6 Qc2).} 11. a3 {[%emt 0:06:53]} a5 {[%emt 0:03:05]} 12. O-O {[%emt 0:00:57]} Bb7 {[%emt 0:05:44]} 13. Rac1 {[%emt 0:04:07]} Re8 {[%emt 0:08:50]} 14. Rfe1 {[%emt 0:09:25]} Ra7 {[%emt 0:37:18]} 15. Bg3 {[%emt 0:05:11]} ({White should play} 15. e4 $16) 15... Qa8 {[%emt 0:08:17]} 16. Ne5 {[%emt 0:01:27]} Nxe5 {[%emt 0:03:48]} 17. Bxe5 {[%emt 0:00:43]} Nd7 {[%emt 0:01:14]} 18. Bxb5 {[%emt 0:08:07]} Nxe5 {[%emt 0:01:37]} 19. dxe5 {[%emt 0:00:55]} Qb8 {[%emt 0:05:28]} 20. Ba4 {[%emt 0:16:28]} Qxe5 {[%emt 0:00:24]} 21. Ne2 {[%emt 0:01:15]} Rc8 {[%emt 0:01:10]} 22. Qc3 {[%emt 0:05:09]} Qd6 {[%emt 0:02:06]} 23. Nd4 {[%emt 0:01:01]} Bf6 {[%emt 0:00:40]} 24. Qc5 Qxc5 {[%emt 0:00:16]} 25. Rxc5 {[%emt 0:01:36]} Bxd4 {[%emt 0:00:19]} 26. exd4 {[%emt 0:00:18]} Kf8 {[%emt 0:00:25]} 27. Rec1 {[%emt 0:01:20]} Ra6 {[%emt 0:00:09]} 28. Bb3 {[%emt 0:11:01]} Re8 {[%emt 0:01:55]} 29. Ba4 {[%emt 0:12:30]} Re6 {[%emt 0:00:56]} 30. f3 {[%emt 0:00:28]} Ke7 {[%emt 0:00:37]} 31. Bb3 {[%emt 0:02:11]} Rb6 {[%emt 0:00:33]} 32. Bc2 {[%emt 0:08:34]} Rxb2 {[%emt 0:00:47]} 33. Rxa5 {[%emt 0:00:11]} Re2 {[%emt 0:00:46]} 34. Ra7 {[%emt 0:00:33]} Kd6 {[%emt 0:00:56]} 35. Kf1 {[%emt 0:01:39]} Rd2 {[%emt 0:00:53]} 36. a4 {[%emt 0:03:05]} Bc8 {[%emt 0:00:45]} 37. Rxf7 {[%emt 0:00:35]} Rdxc2 {[%emt 0:00:13]} 38. Rxc2 {[%emt 0:00:02]} Rxc2 {[%emt 0:00:10]} 39. Rxg7 {[%emt 0:00:06]} Rc4 {[%emt 0:02:00]} 40. Rg6+ {[%emt 0:00:45]} Kc7 {[%emt 0:00:17]} 41. Rxh6 {[%emt 0:00:31]} Rxd4 {[%emt 0:00:26]} 42. Rh7+ {[%emt 0:00:11]} Kb6 {[%emt 0:00:08]} 43. Rh8 {[%emt 0:00:25]} Ba6+ {[%emt 0:00:10]} 44. Kf2 {[%emt 0:00:11]} Rd2+ {[%emt 0:00:25]} 45. Kg1 {[%emt 0:00:41]} d4 {[%emt 0:00:27]} 46. g4 {[%emt 0:01:47]} Rd1+ {[%emt 0:00:36]} 47. Kg2 {[%emt 0:00:22]} d3 {[%emt 0:00:11]} 48. g5 {[%emt 0:00:16]} d2 {[%emt 0:00:11]} 49. Rd8 {[%emt 0:00:27]} Kc7 {[%emt 0:00:20]} 50. Rd4 {[%emt 0:00:20]} c5 {[%emt 0:00:11]} 51. Rd5 {[%emt 0:00:07]} Bc4 {[%emt 0:00:16]} 52. Rxc5+ {[%emt 0:00:15]} Kb6 {[%emt 0:00:31]} 53. Rxc4 {[%emt 0:00:20]} Rg1+ {[%emt 0:00:06]} 54. Kxg1 {[%emt 0:00:26]} d1=Q+ {[%emt 0:00:09]} 55. Kf2 {[%emt 0:00:26]} Qd2+ {[%emt 0:00:14]} 56. Kg3 {[%emt 0:02:05]} Qe1+ {[%emt 0:00:28]} 57. Kg4 {[%emt 0:01:03]} Qe6+ {[%emt 0:00:08]} 58. Kh5 {[%emt 0:00:08]} Qxc4 {[%emt 0:00:08]} 59. g6 {[%emt 0:00:07]} Kc7 {[%emt 0:00:55]} 60. g7 {[%emt 0:00:27]} Kd7 {[%emt 0:00:35]} (60... Qxa4 61. g8=Q (61. g8=B {gets mated.} Qe8+ 62. Kg5 Qxg8+ 63. Kf5 Kd6 64. h4 Qd5+ 65. Kf4 Qd4+ 66. Kf5 Qxh4 67. f4 Kd5 68. Kg6 Qxf4 69. Kh5 Ke6 70. Kg6 Qg4+ 71. Kh6 Kf7 72. Kh7 Qh5#) 61... Qd7 62. Qg3+ Kb6 63. Qg6+ Kc7 64. h4 $18) 0-1

[Event "Hungarian Youth-ch I 2024"]
[Site "Szolnok"]
[Date "2024.04.02"]
[Round "2.17"]
[White "Meszaros-Csonka, David"]
[Black "Liu, James Jiayu"]
[Result "1-0"]
[ECO "D00"]
[WhiteElo "1941"]
[BlackElo "1782"]
[Annotator "RC"]
[PlyCount "113"]
[EventDate "2024.03.31"]
[EventType "swiss"]
[EventCountry "HUN"]
[SourceTitle "playchess.com"]
[Source "ChessBase"]
[SourceQuality "1"]
[TimeControl "5400+30"]

1. d4 {[%emt 0:00:37]} d5 {[%emt 0:00:11]} 2. Bf4 {[%emt 0:00:24]} c5 {[%emt 0:00:52]} 3. e3 {[%emt 0:00:05]} Nc6 {[%emt 0:19:07]} 4. Nc3 {[%emt 0:02:49]} cxd4 {[%emt 0:01:32]} 5. exd4 {[%emt 0:00:02]} Bf5 {[%emt 0:00:26]} 6. Nf3 {[%emt 0:01:19]} e6 {[%emt 0:01:31]} 7. h3 {[%emt 0:33:28]} Nf6 {[%emt 0:08:02]} 8. Bd3 {[%emt 0:05:26]} Be4 {[%emt 0:11:04]} 9. Bb5 {[%emt 0:09:25]} a6 {[%emt 0:15:42]} 10. Bxc6+ {[%emt 0:01:32]} bxc6 {[%emt 0:02:07]} 11. Nxe4 {[%emt 0:02:33]} Nxe4 {[%emt 0:01:31]} 12. c3 {[%emt 0:01:10]} Bd6 {[%emt 0:08:00]} 13. Bxd6 {[%emt 0:04:58]} Qxd6 {[%emt 0:00:15]} 14. Qa4 {[%emt 0:06:59]} O-O {[%emt 0:03:14]} 15. O-O {[%emt 0:02:38]} c5 {[%emt 0:03:36]} 16. dxc5 {[%emt 0:06:27]} Nxc5 {[%emt 0:04:24]} 17. Qd4 {[%emt 0:01:40]} h6 {[%emt 0:02:38]} 18. c4 {[%emt 0:01:02]} Rfe8 {[%emt 0:02:10]} 19. Rfd1 {[%emt 0:02:11]} Rad8 {[%emt 0:01:48]} 20. Rac1 {[%emt 0:03:31]} Qc6 {[%emt 0:01:27]} 21. b4 {[%emt 0:04:29]} Ne4 {[%emt 0:02:23]} 22. Ne5 {[%emt 0:03:15]} Qb7 {[%emt 0:01:09]} 23. f3 {[%emt 0:01:31]} Ng3 {[%emt 0:00:48]} 24. Qf2 {[%emt 0:02:09]} Nf5 {[%emt 0:00:26]} 25. c5 {[%emt 0:01:39]} Qc7 {[%emt 0:01:57]} 26. f4 {[%emt 0:01:34]} Ne7 {[%emt 0:02:13]} 27. a4 {[%emt 0:00:30]} Rb8 {[%emt 0:00:45]} 28. Rb1 {[%emt 0:00:32]} Nc6 {[%emt 0:00:32]} 29. Nd3 {[%emt 0:00:22]} Red8 {[%emt 0:01:35]} 30. b5 {[%emt 0:00:16]} axb5 {[%emt 0:01:09]} 31. axb5 {[%emt 0:00:01]} Na5 {[%emt 0:00:37]} 32. b6 {[%emt 0:00:50]} Qb7 {[%emt 0:01:11]} 33. Ra1 {[%emt 0:00:49]} Nc6 {[%emt 0:00:26]} 34. Ra3 {[%emt 0:00:39]} Ra8 {[%emt 0:00:13]} 35. Rda1 {[%emt 0:00:20]} Rxa3 {[%emt 0:00:23]} 36. Rxa3 {[%emt 0:00:00]} Ra8 {[%emt 0:00:31]} 37. Qa2 {[%emt 0:00:12]} Rxa3 {[%emt 0:00:24]} 38. Qxa3 {[%emt 0:00:01]} f6 {[%emt 0:01:09]} 39. Nb4 {[%emt 0:00:36]} e5 {[%emt 0:01:00]} 40. fxe5 {[%emt 0:00:36]} fxe5 {[%emt 0:00:06]} 41. Nxd5 {[%emt 0:01:20]} Qd7 {[%emt 0:00:34]} 42. Qb3 {[%emt 0:00:56]} Kf8 {[%emt 0:00:56]} 43. b7 {[%emt 0:00:33]} Nb8 {[%emt 0:00:32]} 44. Kf2 {[%emt 0:00:32]} Qf5+ {[%emt 0:00:41]} 45. Qf3 {[%emt 0:00:11]} Qxf3+ {[%emt 0:00:24]} 46. Kxf3 {[%emt 0:00:01]} Kf7 {[%emt 0:00:09]} 47. Ke4 {[%emt 0:00:34]} Ke6 {[%emt 0:00:27]} 48. Nb4 {[%emt 0:00:30]} Nd7 {[%emt 0:00:36]} 49. c6 {[%emt 0:00:07]} Nc5+ {[%emt 0:00:18]} 50. Ke3 {[%emt 0:00:08]} Nxb7 {[%emt 0:00:26]} 51. cxb7 {[%emt 0:00:03]} g5 {[%emt 0:00:17]} 52. b8=Q {[%emt 0:00:06]} g4 {[%emt 0:00:38]} 53. Ke4 {[%emt 0:00:12]} gxh3 {[%emt 0:00:12]} 54. Qb6+ {[%emt 0:00:13]} Kf7 {[%emt 0:00:12]} 55. gxh3 {[%emt 0:00:04]} h5 {[%emt 0:00:21]} 56. Kf5 {[%emt 0:00:10]} h4 {[%emt 0:00:32]} 57. Qc6 1-0